fUST/lending_fUST_20260115
["ID","MTS","AMOUNT","RATE_DAILY","PERIOD"]
[401998735,1768453845858,-2200.0,0.00023691,2]
[401998737,1768453845867,-2200.0,0.00023696,2]
[401998739,1768453845877,-4289.84238407,0.000237,14]
[401998741,1768453845887,-15101.38,0.000237,2]
[401998743,1768453845896,-2062.93,0.000237,7]
[401998745,1768453845905,-151.0,0.000237,2]
[401998747,1768453845915,-250.0,0.000237,10]
[401998749,1768453845924,-2200.0,0.00023703,2]
[401998751,1768453845934,-1701.0,0.0002371,2]
[401998753,1768453845944,-1330.38762188,0.0002371,50]
[401998754,1768453845953,-500.0,0.0002372,2]
[401998757,1768453845963,-160.0,0.00023731,5]
[401998758,1768453845972,-1083.285884,0.0002374,2]
[401998761,1768453845982,-1701.0,0.00023742,2]
[401998762,1768453845991,-2200.0,0.00023745,2]
[401998765,1768453846000,-1330.38762188,0.0002375,52]
[401998767,1768453846009,-1000.0,0.00023754,10]
[401998768,1768453846019,-506.39573377,0.00023782,63]
[401998771,1768453846028,-358.47727814,0.00023782,63]
[401998772,1768453846038,-209.40437684,0.00023788,2]
[401998774,1768453846047,-1330.38762188,0.00023789,54]
[401998776,1768453846056,-800.0,0.0002379,2]
[401998779,1768453846065,-250.0,0.000238,10]
[401998780,1768453846075,-2200.0,0.00023807,2]
[401998782,1768453846084,-328.20661034,0.00023808,56]
[401998785,1768453846093,-2200.0,0.00023817,2]
[401998787,1768453846103,-2200.0,0.00023825,2]
[401998789,1768453846112,-1330.38762188,0.00023828,57]
[401998791,1768453846122,-1330.38762188,0.00023867,59]
[401998793,1768453846132,-800.0,0.0002387,2]
[401998795,1768453846141,-250.0,0.000239,10]
[401998797,1768453846150,-1330.38762188,0.00023907,61]
[401998799,1768453846159,-293.85068442,0.00023912,2]
[401998801,1768453846168,-506.39573377,0.00023918,71]
[401998803,1768453846176,-358.47727814,0.00023918,71]
[401998805,1768453846185,-900.0,0.00023944,2]
[401998807,1768453846194,-328.20661034,0.00023946,63]
[401998808,1768453846203,-1330.38762188,0.00023946,63]
[401998810,1768453846212,-900.0,0.00023947,2]
[401998813,1768453846222,-800.0,0.00023971,2]
[401998815,1768453846232,-2200.0,0.00023972,2]
[401998817,1768453846241,-1330.38762188,0.00023985,65]
[401998819,1768453846251,-1931.32974169,0.00024,60]
[401998821,1768453846260,-1736.447596,0.00024,2]
[401998823,1768453846268,-465.97319212,0.00024,2]
[401998825,1768453846278,-500.0,0.00024,15]
[401998827,1768453846287,-1041.66666667,0.00024,7]
[401998829,1768453846296,-1041.66666667,0.00024,10]
[401998831,1768453846304,-151.0,0.00024,2]
[401998833,1768453846314,-151.0,0.00024,2]
[401998835,1768453846323,-151.0,0.00024,2]
[401998837,1768453846331,-151.0,0.00024,2]
[401998839,1768453846341,-194.573402,0.00024,2]
[401998841,1768453846351,-194.573402,0.00024,2]
[401998843,1768453846360,-194.573402,0.00024,2]
[401998845,1768453846369,-194.573402,0.00024,2]
[401998847,1768453846377,-192.457244,0.00024,2]
[401998849,1768453846387,-466.939068,0.00024,2]
[401998851,1768453846395,-466.939068,0.00024,2]
[401998853,1768453846404,-213.542319,0.00024,2]
[401998855,1768453846414,-151.0,0.00024,2]
[401998857,1768453846423,-466.939068,0.00024,2]
[401998859,1768453846432,-213.542319,0.00024,2]
[401998861,1768453846441,-466.939068,0.00024,2]
[401998862,1768453846450,-213.542319,0.00024,2]
[401998865,1768453846459,-213.542319,0.00024,2]
[401998866,1768453846469,-900.0,0.00024023,2]
[401998868,1768453846478,-151.0,0.00024023,2]
[401998870,1768453846487,-151.0,0.00024023,2]
[401998872,1768453846498,-151.0,0.00024023,2]
[401998874,1768453846509,-165.855245,0.00024023,2]
[401998876,1768453846519,-165.855245,0.00024023,2]
[401998878,1768453846528,-165.855245,0.00024023,2]
[401998880,1768453846538,-165.855245,0.00024023,2]
[401998882,1768453846547,-151.0,0.00024023,2]
[401998885,1768453846558,-1201.527246,0.00024023,2]
[401998887,1768453846567,-1201.527246,0.00024023,2]
[401998889,1768453846577,-1201.527246,0.00024023,2]
[401998890,1768453846586,-1201.527246,0.00024023,2]
[401998893,1768453846595,-285.005968,0.00024023,2]
[401998895,1768453846604,-285.005968,0.00024023,2]
[401998897,1768453846613,-285.005968,0.00024023,2]
[401998898,1768453846622,-285.005968,0.00024023,2]
[401998900,1768453846632,-1330.38762188,0.00024024,68]
[401998902,1768453846643,-295.806985,0.00024042,2]
[401998904,1768453846652,-295.806985,0.00024042,2]
[401998906,1768453846661,-295.806985,0.00024042,2]
[401998908,1768453846670,-295.806985,0.00024042,2]
[401998910,1768453846679,-389.489809,0.00024042,2]
[401998912,1768453846688,-389.489809,0.00024042,2]
[401998914,1768453846697,-151.0,0.00024042,2]
[401998916,1768453846706,-637.717609,0.00024042,2]
[401998918,1768453846716,-151.0,0.00024042,2]
[401998920,1768453846726,-151.0,0.00024042,2]
[401998922,1768453846735,-637.717609,0.00024042,2]
[401998924,1768453846745,-637.717609,0.00024042,2]
[401998926,1768453846754,-637.717609,0.00024042,2]
[401998928,1768453846763,-506.39573377,0.00024055,79]
[401998930,1768453846772,-358.47727814,0.00024055,79]
[401998932,1768453846783,-530.57738532,0.0002406,13]
[401998934,1768453846792,-1330.38762188,0.00024064,70]
[401998936,1768453846800,-151.0,0.00024067,2]
[401998938,1768453846809,-151.0,0.00024067,2]
[401998940,1768453846819,-151.0,0.00024067,2]
[401998942,1768453846828,-165.324728,0.00024067,2]
[401998944,1768453846838,-165.324728,0.00024067,2]
[401998947,1768453846847,-165.324728,0.00024067,2]
[401998949,1768453846857,-165.324728,0.00024067,2]
[401998951,1768453846866,-151.0,0.00024067,2]
[401998953,1768453846875,-151.0,0.00024067,2]
[401998954,1768453846884,-151.0,0.00024067,2]
[401998956,1768453846893,-151.0,0.00024067,2]
[401998958,1768453846902,-279.2273,0.00024067,2]
[401998960,1768453846911,-1701.0,0.00024067,2]
[401998962,1768453846921,-328.20661034,0.00024083,71]
[401998964,1768453846930,-450.29602799,0.00024092,2]
[401998966,1768453846939,-500.0,0.00024095,2]
[401998968,1768453846949,-1330.38762188,0.00024103,72]
[401998970,1768453846958,-750.0,0.0002411,2]
[401998972,1768453846967,-500.0,0.00024111,2]
[401998975,1768453846977,-1701.0,0.00024113,2]
[401998977,1768453846986,-500.0,0.00024118,2]
[401998978,1768453846995,-800.0,0.00024125,2]
[401998981,1768453847004,-1701.0,0.00024128,2]
[401998982,1768453847013,-900.0,0.00024137,2]
[401998984,1768453847022,-1367.0,0.00024141,2]
[401998987,1768453847033,-2147.0,0.00024141,2]
[401998988,1768453847042,-629.0,0.00024141,2]
[401998990,1768453847051,-715.0,0.00024141,2]
[401998992,1768453847060,-178.0,0.00024141,2]
[401998994,1768453847069,-417.0,0.00024141,2]
[401998997,1768453847078,-417.0,0.00024141,2]
[401998998,1768453847087,-427.21115,0.00024141,2]
[401999000,1768453847096,-427.21115,0.00024141,2]
[401999002,1768453847105,-427.21115,0.00024141,2]
[401999004,1768453847114,-427.21115,0.00024141,2]
[401999006,1768453847123,-2280.94742849,0.00024142,2]
[401999015,1768453847219,-3757.5176374,0.00015792,2]
[401999016,1768453847228,-777.0,0.00022724,10]
[401999017,1768453847237,-543.0,0.00022724,10]
[401999018,1768453847246,-3710.30889061,0.00024142,2]
[401999019,1768453847266,-964.9080976,0.00022724,10]
[401999060,1768453847728,-3757.51763737,0.00017855,2]
[401999062,1768453847738,-3757.51763737,0.00019917,2]
[401999064,1768453847746,-3757.51763737,0.0002198,2]
[401999066,1768453847756,-24031.05205074,0.00022622,2]
[401999068,1768453847765,-1344.0,0.000234,10]
[401999070,1768453847774,-543.0,0.000234,10]
[401999072,1768453847783,-148684.51206071,0.00024142,2]
[401999415,1768454336517,160983.9869603,0.00027,120]
[401999416,1768454400832,269507.97816985,0.00027,120]
[401999490,1768455032439,-221.79681179,0.000115,2]
[401999492,1768455032448,-582.0,0.000115,2]
[401999493,1768455032457,-257.467484,0.00011707,2]
[401999505,1768455038387,-32.58481405,0.00011707,2]
[401999506,1768455038397,-2169.2968859,0.00012132,2]
[401999507,1768455038408,-752.25,0.00012329,2]
[401999508,1768455038417,-658.91905691,0.00012713,2]
[401999509,1768455038427,-506.87749952,0.00013171,2]
[401999510,1768455038437,-500.0,0.00013171,2]
[401999511,1768455038446,-542.37851933,0.00013171,2]
[401999512,1768455038456,-500.0,0.00013171,2]
[401999513,1768455038466,-500.0,0.00013171,2]
[401999514,1768455038476,-500.0,0.00013171,2]
[401999515,1768455038485,-500.0,0.00013171,2]
[401999516,1768455038495,-500.0,0.00013171,2]
[401999517,1768455038504,-500.0,0.00013171,2]
[401999518,1768455038513,-500.0,0.00013171,2]
[401999519,1768455038522,-447.8057397,0.00013171,2]
[401999520,1768455038532,-500.0,0.00013171,2]
[401999521,1768455038541,-511.19715255,0.00013171,2]
[401999522,1768455038550,-500.0,0.00013171,2]
[401999523,1768455038559,-500.0,0.00013171,2]
[401999524,1768455038568,-500.0,0.00013171,2]
[401999525,1768455038577,-500.0,0.00013171,2]
[401999526,1768455038587,-500.0,0.00013171,2]
[401999527,1768455038596,-500.0,0.00013171,2]
[401999528,1768455038605,-500.0,0.00013171,2]
[401999529,1768455038614,-500.0,0.00013171,2]
[401999530,1768455038624,-500.0,0.00013171,2]
[401999531,1768455038633,-500.0,0.00013171,2]
[401999532,1768455038642,-500.0,0.00013171,2]
[401999533,1768455038651,-500.0,0.00013171,2]
[401999534,1768455038660,-500.0,0.00013171,2]
[401999535,1768455038669,-500.0,0.00013171,2]
[401999536,1768455038678,-500.0,0.00013171,2]
[401999537,1768455038687,-500.0,0.00013171,2]
[401999538,1768455038696,-500.0,0.00013171,2]
[401999539,1768455038706,-500.0,0.00013171,2]
[401999540,1768455038715,-500.0,0.00013171,2]
[401999541,1768455038724,-500.0,0.00013171,2]
[401999542,1768455038734,-500.0,0.00013171,2]
[401999543,1768455038743,-500.0,0.00013171,2]
[401999544,1768455038753,-500.0,0.00013171,2]
[401999545,1768455038763,-500.0,0.00013171,2]
[401999546,1768455038772,-500.0,0.00013171,2]
[401999547,1768455038782,-500.0,0.00013171,2]
[401999548,1768455038791,-500.0,0.00013171,2]
[401999549,1768455038800,-500.0,0.00013171,2]
[401999550,1768455038810,-500.0,0.00013171,2]
[401999551,1768455038820,-500.0,0.00013171,2]
[401999552,1768455038832,-500.0,0.00013171,2]
[401999553,1768455038841,-500.0,0.00013171,2]
[401999554,1768455038850,-500.0,0.00013171,2]
[401999555,1768455038860,-500.0,0.00013171,2]
[401999556,1768455038870,-500.0,0.00013171,2]
[401999557,1768455038879,-500.0,0.00013171,2]
[401999558,1768455038888,-500.0,0.00013171,2]
[401999559,1768455038899,-500.0,0.00013171,2]
[401999560,1768455038908,-500.0,0.00013171,2]
[401999561,1768455038917,-500.0,0.00013171,2]
[401999562,1768455038927,-300.0,0.00013171,2]
[401999563,1768455038936,-300.0,0.00013171,2]
[401999564,1768455038945,-300.0,0.00013171,2]
[401999565,1768455038956,-300.0,0.00013171,2]
[401999566,1768455038965,-593.0,0.00013171,2]
[401999567,1768455038975,-300.0,0.00013171,2]
[401999568,1768455038984,-53057.10068527,0.00013172,2]
[401999569,1768455038995,-7801.46361737,0.00013172,2]
[401999570,1768455039006,-22118.04024479,0.00013172,2]
[401999571,1768455039017,-917023.39545257,0.00013172,2]
[401999572,1768455039026,-151.0,0.00013264,2]
[401999573,1768455039035,-151.0,0.00013264,2]
[401999574,1768455039044,-151.0,0.00013264,2]
[401999575,1768455039053,-270.84979381,0.00013264,2]
[401999576,1768455039062,-500.0,0.00013272,2]
[401999577,1768455039071,-501.67913637,0.00013273,2]
[401999578,1768455039080,-501.90773832,0.00013273,2]
[401999579,1768455039089,-500.0,0.00013273,2]
[401999580,1768455039098,-501.70182387,0.00013273,2]
[401999581,1768455039107,-503.71402261,0.00013273,2]
[401999582,1768455039116,-501.35371078,0.00013273,2]
[401999583,1768455039126,-500.0,0.00013273,2]
[401999584,1768455039135,-500.0,0.00013273,2]
[401999585,1768455039144,-500.0,0.00013273,2]
[401999586,1768455039153,-500.0,0.00013273,2]
[401999587,1768455039162,-500.77652519,0.00013273,2]
[401999588,1768455039171,-500.0,0.00013273,2]
[401999589,1768455039180,-502.50394649,0.00013273,2]
[401999590,1768455039189,-500.0,0.00013273,2]
[401999591,1768455039198,-501.16258078,0.00013273,2]
[401999592,1768455039208,-500.0,0.00013273,2]
[401999593,1768455039217,-500.0,0.00013273,2]
[401999594,1768455039227,-500.0,0.00013273,2]
[401999595,1768455039236,-500.0,0.00013273,2]
[401999596,1768455039246,-500.0,0.00013273,2]
[401999597,1768455039255,-500.0,0.00013273,2]
[401999598,1768455039264,-500.0,0.00013273,2]
[401999599,1768455039274,-500.0,0.00013273,2]
[401999600,1768455039283,-500.0,0.00013273,2]
[401999601,1768455039292,-500.0,0.00013273,2]
[401999602,1768455039302,-500.0,0.00013273,2]
[401999603,1768455039312,-232.65632197,0.00013273,2]
[401999604,1768455039321,-500.0,0.00013273,2]
[401999605,1768455039331,-159.49177821,0.00013273,2]
[401999606,1768455039340,-501.83823829,0.00013273,2]
[401999607,1768455039350,-500.0,0.00013273,2]
[401999608,1768455039359,-268.98532699,0.00013273,2]
[401999609,1768455039368,-500.0,0.00013273,2]
[401999610,1768455039378,-501.53735673,0.00013273,2]
[401999611,1768455039387,-500.0,0.00013273,2]
[401999612,1768455039396,-500.0,0.00013273,2]
[401999613,1768455039409,-500.0,0.00013273,2]
[401999614,1768455039428,-500.0,0.00013273,2]
[401999615,1768455039437,-500.0,0.00013273,2]
[401999616,1768455039446,-300.0,0.00013537,2]
[401999617,1768455039458,-300.0,0.00013537,2]
[401999618,1768455039468,-300.0,0.00013537,2]
[401999619,1768455039478,-300.0,0.00013537,2]
[401999620,1768455039487,-300.0,0.00013537,2]
[401999621,1768455039496,-300.0,0.00013537,2]
[401999622,1768455039505,-300.0,0.00013537,2]
[401999623,1768455039514,-300.0,0.00013537,2]
[401999624,1768455039524,-300.0,0.00013537,2]
[401999625,1768455039533,-300.0,0.00013537,2]
[401999626,1768455039542,-300.0,0.00013537,2]
[401999627,1768455039551,-300.0,0.00013537,2]
[401999628,1768455039560,-300.0,0.00013537,2]
[401999629,1768455039569,-300.0,0.00013537,2]
[401999630,1768455039578,-300.0,0.00013537,2]
[401999631,1768455039587,-600.0,0.00013537,2]
[401999632,1768455039596,-500.0,0.00013545,2]
[401999633,1768455039605,-300.0,0.00013673,2]
[401999634,1768455039614,-500.0,0.00013698,2]
[401999635,1768455039623,-500.0,0.00013698,2]
[401999636,1768455039632,-500.0,0.00013698,2]
[401999637,1768455039642,-500.0,0.00013698,2]
[401999638,1768455039651,-500.0,0.00013698,2]
[401999639,1768455039661,-500.0,0.00013698,2]
[401999640,1768455039670,-500.0,0.00013698,2]
[401999641,1768455039679,-500.0,0.00013698,2]
[401999642,1768455039688,-500.0,0.00013698,2]
[401999643,1768455039697,-500.0,0.00013698,2]
[401999644,1768455039707,-500.0,0.00013698,2]
[401999645,1768455039716,-2847.442541,0.00013699,2]
[401999646,1768455039725,-505.76612421,0.00013699,2]
[401999647,1768455039735,-500.0,0.00013699,2]
[401999648,1768455039745,-500.0,0.00013699,2]
[401999649,1768455039754,-502.68760133,0.00013699,2]
[401999650,1768455039762,-500.0,0.00013699,2]
[401999651,1768455039771,-500.0,0.00013699,2]
[401999652,1768455039781,-500.0,0.00013699,2]
[401999653,1768455039790,-500.0,0.00013699,2]
[401999654,1768455039799,-500.0,0.00013699,2]
[401999655,1768455039808,-500.0,0.00013699,2]
[401999656,1768455039817,-500.0,0.00013699,2]
[401999657,1768455039829,-500.0,0.00013699,2]
[401999658,1768455039838,-500.0,0.00013699,2]
[401999659,1768455039847,-500.0,0.00013699,2]
[401999660,1768455039857,-500.0,0.00013699,2]
[401999661,1768455039867,-525.04365163,0.00013699,2]
[401999662,1768455039876,-500.0,0.00013699,2]
[401999663,1768455039886,-500.0,0.00013699,2]
[401999664,1768455039895,-500.0,0.00013699,2]
[401999665,1768455039905,-500.0,0.00013699,2]
[401999667,1768455039914,-500.0,0.00013699,2]
[401999668,1768455039923,-173.67599255,0.00013699,2]
[401999669,1768455039932,-158.40252615,0.00013699,2]
[401999670,1768455039941,-500.79489039,0.00013699,2]
[401999671,1768455039951,-340.71182591,0.00013699,2]
[401999672,1768455039960,-500.0,0.00013699,2]
[401999674,1768455039969,-500.0,0.00013699,2]
[401999676,1768455039978,-500.0,0.00013699,2]
[401999678,1768455039987,-535.78404119,0.00013699,2]
[401999680,1768455039996,-500.0,0.00013699,2]
[401999681,1768455040005,-500.0,0.00013699,2]
[401999682,1768455040014,-500.0,0.00013699,2]
[401999683,1768455040023,-500.0,0.00013699,2]
[401999685,1768455040031,-526.36402703,0.00013699,2]
[401999686,1768455040041,-500.0,0.00013699,2]
[401999687,1768455040050,-500.0,0.00013699,2]
[401999688,1768455040059,-500.0,0.00013699,2]
[401999689,1768455040067,-500.0,0.00013699,2]
[401999690,1768455040077,-500.0,0.00013699,2]
[401999692,1768455040086,-500.0,0.00013699,2]
[401999693,1768455040095,-519.69832061,0.00013699,2]
[401999694,1768455040104,-308.17111217,0.00013699,2]
[401999695,1768455040112,-500.0,0.00013699,2]
[401999696,1768455040121,-500.0,0.00013699,2]
[401999697,1768455040131,-166.45716009,0.00013699,2]
[401999698,1768455040140,-500.0,0.00013699,2]
[401999700,1768455040150,-524.59055805,0.00013699,2]
[401999701,1768455040159,-637.83317443,0.00013699,2]
[401999702,1768455040168,-500.0,0.00013699,2]
[401999703,1768455040178,-500.0,0.00013699,2]
[401999704,1768455040187,-500.0,0.00013699,2]
[401999705,1768455040196,-500.0,0.00013699,2]
[401999706,1768455040205,-500.0,0.00013699,2]
[401999707,1768455040215,-500.0,0.00013699,2]
[401999708,1768455040224,-501.92409365,0.00013699,2]
[401999709,1768455040234,-500.0,0.00013699,2]
[401999710,1768455040243,-500.0,0.00013699,2]
[401999711,1768455040252,-500.0,0.00013699,2]
[401999712,1768455040263,-342.2617117,0.00013707,2]
[401999713,1768455040272,-500.0,0.00013819,2]
[401999714,1768455040281,-500.0,0.0001382,2]
[401999715,1768455040291,-500.0,0.0001382,2]
[401999716,1768455040300,-500.0,0.0001382,2]
[401999717,1768455040309,-1000.0,0.00013821,2]
[401999718,1768455040318,-807.79326057,0.00013821,2]
[401999719,1768455040328,-612.43410247,0.00013821,2]
[401999720,1768455040337,-1000.0,0.00013821,2]
[401999721,1768455040346,-1000.0,0.00013821,2]
[401999722,1768455040355,-1000.0,0.00013821,2]
[401999723,1768455040365,-1000.0,0.00013821,2]
[401999724,1768455040374,-1000.0,0.00013821,2]
[401999725,1768455040384,-1000.0,0.00013821,2]
[401999727,1768455040392,-1000.0,0.00013821,2]
[401999728,1768455040402,-1000.0,0.00013821,2]
[401999729,1768455040411,-871.28937045,0.00013821,2]
[401999730,1768455040421,-1000.0,0.00013821,2]
[401999732,1768455040431,-1000.0,0.00013821,2]
[401999734,1768455040439,-1000.0,0.00013821,2]
[401999736,1768455040449,-1000.0,0.00013821,2]
[401999738,1768455040458,-1000.0,0.00013821,2]
[401999740,1768455040467,-332.84054577,0.00013821,2]
[401999742,1768455040477,-1000.0,0.00013821,2]
[401999744,1768455040486,-782.52592484,0.00013821,2]
[401999746,1768455040496,-1000.0,0.00013821,2]
[401999748,1768455040505,-1000.0,0.00013821,2]
[401999750,1768455040514,-1000.0,0.00013821,2]
[401999752,1768455040523,-1000.0,0.00013821,2]
[401999755,1768455040533,-408.995523,0.00013821,2]
[401999756,1768455040542,-163.78959399,0.00013973,2]
[401999758,1768455040552,-500.0,0.00014093,2]
[401999761,1768455040561,-294.82193478,0.00014193,2]
[401999762,1768455040570,-600.0,0.00014221,2]
[401999765,1768455040579,-500.0,0.00014246,2]
[401999767,1768455040589,-538.07548369,0.00014246,2]
[401999768,1768455040598,-500.0,0.00014246,2]
[401999770,1768455040607,-500.0,0.00014246,2]
[401999772,1768455040617,-1000.0,0.00014247,2]
[401999775,1768455040627,-503.80904989,0.00014247,2]
[401999777,1768455040636,-251.08543458,0.00014247,2]
[401999779,1768455040645,-1000.0,0.00014247,2]
[401999780,1768455040655,-503.23906196,0.00014247,2]
[401999782,1768455040664,-1000.0,0.00014247,2]
[401999784,1768455040673,-497.35034591,0.00014247,2]
[401999786,1768455040682,-1001.86082795,0.00014247,2]
[401999797,1768455040857,-1000.0,0.00014247,2]
[401999798,1768455040867,-1000.0,0.00014247,2]
[401999799,1768455040878,-1000.0,0.00014247,2]
[401999800,1768455040888,-1000.0,0.00014247,2]
[401999801,1768455040897,-1001.00559058,0.00014247,2]
[401999802,1768455040909,-1000.0,0.00014247,2]
[401999803,1768455040919,-1000.0,0.00014247,2]
[401999804,1768455040930,-1000.0,0.00014247,2]
[401999805,1768455040939,-1000.0,0.00014247,2]
[401999806,1768455040948,-542.46798039,0.00014247,2]
[401999807,1768455040958,-1000.36039678,0.00014247,2]
[401999808,1768455040967,-1000.0,0.00014247,2]
[401999809,1768455040976,-1001.58207676,0.00014247,2]
[401999810,1768455040985,-1000.0,0.00014247,2]
[401999811,1768455040994,-1000.0,0.00014247,2]
[401999812,1768455041003,-1000.50109538,0.00014247,2]
[401999813,1768455041012,-1000.0,0.00014247,2]
[401999814,1768455041021,-957.53320111,0.00014247,2]
[401999815,1768455041029,-1000.0,0.00014247,2]
[401999816,1768455041038,-225.1228521,0.00014247,2]
[401999817,1768455041047,-190.21102875,0.00014247,2]
[401999818,1768455041056,-1000.0,0.00014247,2]
[401999819,1768455041064,-515.19045944,0.00014247,2]
[401999820,1768455041073,-1000.0,0.00014247,2]
[401999821,1768455041082,-255.64801174,0.00014247,2]
[401999822,1768455041091,-500.73107514,0.00014247,2]
[401999823,1768455041099,-1000.0,0.00014247,2]
[401999824,1768455041108,-1000.75375404,0.00014247,2]
[401999825,1768455041117,-1000.0,0.00014247,2]
[401999826,1768455041126,-1000.0,0.00014247,2]
[401999827,1768455041134,-1000.0,0.00014247,2]
[401999828,1768455041143,-600.95688303,0.00014247,2]
[401999829,1768455041152,-1000.0,0.00014247,2]
[401999830,1768455041161,-1000.0,0.00014247,2]
[401999831,1768455041169,-1000.0,0.00014247,2]
[401999832,1768455041178,-1000.0,0.00014247,2]
[401999833,1768455041187,-100000.0,0.00014298,2]
[401999834,1768455041196,-500.0,0.00014367,2]
[401999835,1768455041205,-265.22052379,0.00014368,2]
[401999836,1768455041214,-500.0,0.00014368,2]
[401999837,1768455041224,-1008.43779549,0.00014368,2]
[401999838,1768455041233,-159.16723012,0.00014368,2]
[401999839,1768455041242,-1500.0,0.00014368,2]
[401999840,1768455041252,-1500.0,0.00014368,2]
[401999841,1768455041261,-1500.0,0.00014368,2]
[401999842,1768455041270,-1500.0,0.00014368,2]
[401999843,1768455041280,-1500.0,0.00014368,2]
[401999844,1768455041289,-1500.0,0.00014368,2]
[401999845,1768455041298,-1000.0,0.00014368,2]
[401999846,1768455041307,-1500.0,0.00014368,2]
[401999847,1768455041316,-1500.0,0.00014368,2]
[401999848,1768455041324,-1500.0,0.00014368,2]
[401999849,1768455041334,-1500.0,0.00014368,2]
[401999850,1768455041343,-504.79261489,0.00014368,2]
[401999851,1768455041352,-781.86013002,0.00014368,2]
[401999852,1768455041362,-501.71594678,0.00014368,2]
[401999853,1768455041372,-1500.0,0.00014368,2]
[401999854,1768455041381,-592.31797826,0.00014368,2]
[401999855,1768455041390,-224.32333904,0.00014368,2]
[401999856,1768455041399,-420.0,0.00014441,2]
[401999857,1768455041409,-221.0,0.00014488,2]
[401999858,1768455041418,-151.0,0.000146,2]
[401999859,1768455041427,-504.39394044,0.00014641,2]
[401999860,1768455041436,-151.0,0.000147,2]
[401999861,1768455041446,-500.0,0.00014794,2]
[401999862,1768455041455,-1500.0,0.00014795,2]
[401999863,1768455041464,-720.0,0.00014891,2]
[401999864,1768455041473,-151.0,0.000149,2]
[401999865,1768455041482,-571.92444885,0.00014905,2]
[401999866,1768455041492,-151.0,0.00015,2]
[401999867,1768455041503,-151.0,0.000152,2]
[401999868,1768455041512,-2000.0,0.00015342,2]
[401999869,1768455041521,-250.0,0.00015372,2]
[401999870,1768455041530,-151.0,0.000154,2]
[401999871,1768455041539,-151.0,0.000155,2]
[401999872,1768455041549,-151.0,0.000157,2]
[401999873,1768455041558,-394.47112535,0.00015707,2]
[401999874,1768455041567,-3511.81258485,0.0001579,2]
[401999875,1768455041576,-151.0,0.000158,2]
[401999876,1768455041586,-151.0,0.000158,2]
[401999877,1768455041595,-151.0,0.000158,2]
[401999878,1768455041605,-151.0,0.000158,2]
[401999879,1768455041614,-151.0,0.000158,2]
[401999880,1768455041623,-151.0,0.000158,2]
[401999881,1768455041632,-151.0,0.000158,2]
[401999882,1768455041641,-151.0,0.000158,2]
[401999883,1768455041650,-151.0,0.000158,2]
[401999884,1768455041659,-151.0,0.000158,2]
[401999885,1768455041668,-587.0,0.00015834,2]
[401999886,1768455041678,-500.0,0.00015841,2]
[401999887,1768455041687,-285.90496763,0.00015841,2]
[401999888,1768455041696,-500.0,0.00015841,2]
[401999889,1768455041706,-500.0,0.00015841,2]
[401999890,1768455041715,-500.0,0.00015841,2]
[401999891,1768455041724,-500.0,0.00015841,2]
[401999892,1768455041733,-500.0,0.00015841,2]
[401999893,1768455041742,-500.0,0.00015841,2]
[401999894,1768455041751,-500.0,0.00015841,2]
[401999895,1768455041760,-500.0,0.00015841,2]
[401999896,1768455041770,-500.0,0.00015841,2]
[401999897,1768455041779,-500.0,0.00015841,2]